[Event "*** SCC Grand Prix: Titled Tuesday Blitz"]
[Site "Chess.com"]
[Date "2020.07.21"]
[Round "3"]
[White "chessfrendz"]
[Black "TST2014"]
[Result "0-1"]
[WhiteElo "2249"]
[BlackElo "2516"]
[TimeControl "180+1"]
[EndTime "10:27:47 PDT"]
[Termination "TST2014 won on time"]

1. d4 {[%clk 0:03:00.9]} 1... Nf6 {[%clk 0:02:58.5]} 2. c4 {[%clk 0:02:59.6]}
2... c5 {[%clk 0:02:57.1]} 3. d5 {[%clk 0:02:57.7]} 3... b5 {[%clk 0:02:55.5]}
4. f3 {[%clk 0:02:56.7]} 4... g6 {[%clk 0:02:43.7]} 5. e4 {[%clk 0:02:55.2]}
5... d6 {[%clk 0:02:41.5]} 6. Nc3 {[%clk 0:02:51.6]} 6... b4 {[%clk 0:02:40.9]}
7. Nce2 {[%clk 0:02:49.9]} 7... Bg7 {[%clk 0:02:35.6]} 8. Be3 {[%clk 0:02:48.4]}
8... O-O {[%clk 0:02:33.9]} 9. Qd2 {[%clk 0:02:47.2]} 9... Re8 {[%clk
0:02:31.9]} 10. g4 {[%clk 0:01:57.9]} 10... e6 {[%clk 0:02:23.4]} 11. dxe6
{[%clk 0:01:31.1]} 11... fxe6 {[%clk 0:02:15.2]} 12. Rd1 {[%clk 0:01:22]} 12...
d5 {[%clk 0:02:08.4]} 13. cxd5 {[%clk 0:01:15.6]} 13... exd5 {[%clk 0:02:07.1]}
14. g5 {[%clk 0:01:15.5]} 14... Nxe4 {[%clk 0:01:51.3]} 15. fxe4 {[%clk
0:01:14.3]} 15... d4 {[%clk 0:01:51.4]} 16. Bf4 {[%clk 0:01:02.2]} 16... Bb7
{[%clk 0:01:43.7]} 17. Bg2 {[%clk 0:01:00.7]} 17... Bxe4 {[%clk 0:01:40.8]} 18.
Bxe4 {[%clk 0:01:00]} 18... Rxe4 {[%clk 0:01:41.7]} 19. Nh3 {[%clk 0:00:55.6]}
19... Nc6 {[%clk 0:01:33.1]} 20. Nf2 {[%clk 0:00:52]} 20... Re6 {[%clk
0:01:24.7]} 21. O-O {[%clk 0:00:51.2]} 21... Qe7 {[%clk 0:01:22.9]} 22. Ng3
{[%clk 0:00:50.8]} 22... Re8 {[%clk 0:01:21.1]} 23. Ng4 {[%clk 0:00:48.3]} 23...
c4 {[%clk 0:01:05.7]} 24. Qg2 {[%clk 0:00:45.3]} 24... d3 {[%clk 0:01:02.5]} 25.
Qd5 {[%clk 0:00:43.8]} 25... c3 {[%clk 0:00:36.1]} 26. bxc3 {[%clk 0:00:42.4]}
26... Bxc3 {[%clk 0:00:32.1]} 27. Rxd3 {[%clk 0:00:30.9]} 27... Rd8 {[%clk
0:00:30.9]} 28. Qc4 {[%clk 0:00:19.3]} 28... Bd4+ {[%clk 0:00:27.5]} 29. Kh1
{[%clk 0:00:18.2]} 29... Na5 {[%clk 0:00:25.5]} 30. Qb5 {[%clk 0:00:15.1]} 30...
Nc6 {[%clk 0:00:18.7]} 31. Nh6+ {[%clk 0:00:11.8]} 31... Kg7 {[%clk 0:00:17.6]}
0-1

[Event "*** SCC Grand Prix: Titled Tuesday Blitz"]
[Site "Chess.com"]
[Date "2020.07.21"]
[Round "3"]
[White "ftorodent"]
[Black "Andreikka"]
[Result "1-0"]
[WhiteElo "2646"]
[BlackElo "2895"]
[TimeControl "180+1"]
[EndTime "10:27:50 PDT"]
[Termination "ftorodent won by resignation"]

1. d4 {[%clk 0:03:00.9]} 1... Nf6 {[%clk 0:02:59.2]} 2. c4 {[%clk 0:03:00.7]}
2... e6 {[%clk 0:02:40]} 3. Nf3 {[%clk 0:02:59.6]} 3... d5 {[%clk 0:02:39.6]} 4.
Nc3 {[%clk 0:02:59.6]} 4... Nbd7 {[%clk 0:02:33.4]} 5. Bg5 {[%clk 0:02:56.2]}
5... Be7 {[%clk 0:02:26.7]} 6. e3 {[%clk 0:02:55.8]} 6... h6 {[%clk 0:02:23.7]}
7. Bh4 {[%clk 0:02:55.1]} 7... O-O {[%clk 0:02:23.4]} 8. Bd3 {[%clk 0:02:53.1]}
8... c5 {[%clk 0:02:23.1]} 9. cxd5 {[%clk 0:02:50.4]} 9... Nxd5 {[%clk
0:02:22.7]} 10. Bxe7 {[%clk 0:02:50]} 10... Nxe7 {[%clk 0:02:23.6]} 11. O-O
{[%clk 0:02:46.1]} 11... cxd4 {[%clk 0:02:22]} 12. Nxd4 {[%clk 0:02:46.2]} 12...
Nc5 {[%clk 0:02:17.8]} 13. Be2 {[%clk 0:02:44.6]} 13... Bd7 {[%clk 0:02:11.3]}
14. b4 {[%clk 0:02:40.7]} 14... Na6 {[%clk 0:02:11]} 15. Qb3 {[%clk 0:02:38.4]}
15... Rc8 {[%clk 0:02:10.2]} 16. Rac1 {[%clk 0:02:36.2]} 16... Qb6 {[%clk
0:02:09.5]} 17. a3 {[%clk 0:02:35.9]} 17... Rfd8 {[%clk 0:02:08.8]} 18. Bf3
{[%clk 0:02:18.1]} 18... e5 {[%clk 0:01:57.4]} 19. Nde2 {[%clk 0:02:14.3]} 19...
Nc5 {[%clk 0:01:57.2]} 20. Qb1 {[%clk 0:01:58.4]} 20... Ne6 {[%clk 0:01:53.7]}
21. Ng3 {[%clk 0:01:35.8]} 21... Ng5 {[%clk 0:01:40.4]} 22. Be2 {[%clk
0:01:31.7]} 22... f5 {[%clk 0:01:39.6]} 23. Rfd1 {[%clk 0:01:02]} 23... Be6
{[%clk 0:01:26.8]} 24. Na4 {[%clk 0:00:55.2]} 24... Rxd1+ {[%clk 0:01:26.4]} 25.
Rxd1 {[%clk 0:00:55.3]} 25... Qc6 {[%clk 0:01:26.6]} 26. Nc5 {[%clk 0:00:52.1]}
26... b6 {[%clk 0:01:20.7]} 27. Nxe6 {[%clk 0:00:46.3]} 27... Qxe6 {[%clk
0:01:21.6]} 28. Rc1 {[%clk 0:00:45.2]} 28... f4 {[%clk 0:01:09.1]} 29. Nf1
{[%clk 0:00:44.8]} 29... Kh8 {[%clk 0:00:55]} 30. h4 {[%clk 0:00:38.1]} 30...
Rxc1 {[%clk 0:00:28.4]} 31. Qxc1 {[%clk 0:00:37.6]} 31... Ne4 {[%clk 0:00:18.6]}
32. exf4 {[%clk 0:00:35.7]} 32... exf4 {[%clk 0:00:19.5]} 33. Qxf4 {[%clk
0:00:35.6]} 33... Nd5 {[%clk 0:00:20.1]} 34. Qf8+ {[%clk 0:00:28.5]} 34... Kh7
{[%clk 0:00:19.8]} 35. Bd3 {[%clk 0:00:28.2]} 35... Qe5 {[%clk 0:00:13.1]} 36.
Ng3 {[%clk 0:00:20.4]} 36... Nf6 {[%clk 0:00:13.2]} 37. Nxe4 {[%clk 0:00:20.2]}
37... Nxe4 {[%clk 0:00:14.1]} 38. Qf3 {[%clk 0:00:20]} 38... Qa1+ {[%clk
0:00:13.9]} 39. Kh2 {[%clk 0:00:20.1]} 39... Qe5+ {[%clk 0:00:14.5]} 40. g3
{[%clk 0:00:20]} 1-0

[Event "*** SCC Grand Prix: Titled Tuesday Blitz"]
[Site "Chess.com"]
[Date "2020.07.21"]
[Round "3"]
[White "MomchilPetkov"]
[Black "Kolle05"]
[Result "1-0"]
[WhiteElo "2591"]
[BlackElo "2367"]
[TimeControl "180+1"]
[EndTime "10:27:50 PDT"]
[Termination "MomchilPetkov won on time"]

1. d4 {[%clk 0:03:00.9]} 1... Nf6 {[%clk 0:02:58.9]} 2. c4 {[%clk 0:03:00.3]}
2... g6 {[%clk 0:02:58.4]} 3. Nc3 {[%clk 0:03:00.3]} 3... Bg7 {[%clk 0:02:58.5]}
4. e4 {[%clk 0:02:59.8]} 4... d6 {[%clk 0:02:58.8]} 5. h3 {[%clk 0:02:59.9]}
5... O-O {[%clk 0:02:56.9]} 6. Be3 {[%clk 0:02:59.9]} 6... e5 {[%clk 0:02:56.2]}
7. d5 {[%clk 0:02:59.5]} 7... c6 {[%clk 0:02:56.5]} 8. g4 {[%clk 0:02:57.7]}
8... Nfd7 {[%clk 0:02:37.7]} 9. Nge2 {[%clk 0:02:50.3]} 9... a5 {[%clk
0:02:26.1]} 10. Ng3 {[%clk 0:02:44.4]} 10... Qc7 {[%clk 0:02:22.4]} 11. h4
{[%clk 0:02:36.4]} 11... Na6 {[%clk 0:02:10.8]} 12. h5 {[%clk 0:02:32]} 12...
Ndc5 {[%clk 0:02:02]} 13. Be2 {[%clk 0:02:28.4]} 13... f6 {[%clk 0:01:15.1]} 14.
hxg6 {[%clk 0:02:17]} 14... hxg6 {[%clk 0:01:15.9]} 15. Kf1 {[%clk 0:02:09.2]}
15... Kf7 {[%clk 0:00:55.5]} 16. Kg2 {[%clk 0:02:06.7]} 16... Bd7 {[%clk
0:00:50.9]} 17. g5 {[%clk 0:01:43.5]} 17... Rh8 {[%clk 0:00:46.4]} 18. gxf6
{[%clk 0:01:37.4]} 18... Bxf6 {[%clk 0:00:44.8]} 19. Qd2 {[%clk 0:01:14.7]}
19... Rag8 {[%clk 0:00:18.4]} 20. Bh6 {[%clk 0:01:05.6]} 20... Qd8 {[%clk
0:00:16.9]} 21. dxc6 {[%clk 0:00:57.1]} 21... Bxc6 {[%clk 0:00:16.5]} 22. Nd5
{[%clk 0:00:56]} 22... Nc7 {[%clk 0:00:12]} 23. Raf1 {[%clk 0:00:32.1]} 23...
Bxd5 {[%clk 0:00:08.4]} 24. cxd5 {[%clk 0:00:31.3]} 24... Qe7 {[%clk 0:00:04.3]}
25. Bg4 {[%clk 0:00:20.5]} 25... Qd8 {[%clk 0:00:02.1]} 26. f4 {[%clk
0:00:18.2]} 26... exf4 {[%clk 0:00:01.9]} 27. Rxf4 {[%clk 0:00:19.1]} 27... g5
{[%clk 0:00:02.2]} 28. Rf2 {[%clk 0:00:16.8]} 28... Kg6 {[%clk 0:00:01.6]} 29.
Bh5+ {[%clk 0:00:11.1]} 29... Kh7 {[%clk 0:00:01.4]} 30. Bf7 {[%clk 0:00:11]}
1-0

[Event "*** SCC Grand Prix: Titled Tuesday Blitz"]
[Site "Chess.com"]
[Date "2020.07.21"]
[Round "3"]
[White "TudorAnton"]
[Black "ExtremeLearner"]
[Result "1-0"]
[WhiteElo "2520"]
[BlackElo "2267"]
[TimeControl "180+1"]
[EndTime "10:27:50 PDT"]
[Termination "TudorAnton won by resignation"]

1. d4 {[%clk 0:03:00.9]} 1... Nf6 {[%clk 0:02:55.5]} 2. Nc3 {[%clk 0:02:58.8]}
2... d5 {[%clk 0:02:37.8]} 3. Bg5 {[%clk 0:02:57.4]} 3... e6 {[%clk 0:02:32.1]}
4. Nf3 {[%clk 0:02:53.7]} 4... Bb4 {[%clk 0:02:27.7]} 5. e3 {[%clk 0:02:50.2]}
5... O-O {[%clk 0:02:21.6]} 6. Bd3 {[%clk 0:02:49.6]} 6... Nbd7 {[%clk
0:02:17.4]} 7. O-O {[%clk 0:02:49.4]} 7... h6 {[%clk 0:02:08.8]} 8. Bh4 {[%clk
0:02:48.7]} 8... Be7 {[%clk 0:02:00.1]} 9. Re1 {[%clk 0:02:38.2]} 9... c5 {[%clk
0:01:53.2]} 10. Bf1 {[%clk 0:02:36.2]} 10... b6 {[%clk 0:01:50.8]} 11. Bg3
{[%clk 0:02:13.3]} 11... Bb7 {[%clk 0:01:46.8]} 12. Nb5 {[%clk 0:02:04.1]} 12...
Ne4 {[%clk 0:01:38.1]} 13. a4 {[%clk 0:01:58.3]} 13... a6 {[%clk 0:01:34.8]} 14.
Na3 {[%clk 0:01:57.6]} 14... Rc8 {[%clk 0:01:29.2]} 15. c3 {[%clk 0:01:56.8]}
15... f5 {[%clk 0:01:19.9]} 16. Be5 {[%clk 0:01:50.8]} 16... Nxe5 {[%clk
0:01:05.9]} 17. Nxe5 {[%clk 0:01:51.7]} 17... Bf6 {[%clk 0:01:05.6]} 18. f3
{[%clk 0:01:49.4]} 18... Bxe5 {[%clk 0:01:00]} 19. fxe4 {[%clk 0:01:49.3]} 19...
Bc7 {[%clk 0:00:40.8]} 20. e5 {[%clk 0:01:49]} 20... Kh8 {[%clk 0:00:31.6]} 21.
g3 {[%clk 0:01:47.6]} 21... Rg8 {[%clk 0:00:29.8]} 22. Qh5 {[%clk 0:01:44]}
22... Bc6 {[%clk 0:00:28.8]} 23. Bxa6 {[%clk 0:01:42.5]} 23... Be8 {[%clk
0:00:26.7]} 24. Qh3 {[%clk 0:01:38.9]} 24... Ra8 {[%clk 0:00:25.9]} 25. Bb5
{[%clk 0:01:39.4]} 25... Qg5 {[%clk 0:00:24.6]} 26. Bxe8 {[%clk 0:01:38]} 26...
Raxe8 {[%clk 0:00:25.5]} 27. Nb5 {[%clk 0:01:37.2]} 27... Bd8 {[%clk 0:00:26.1]}
28. Nd6 {[%clk 0:01:35.9]} 28... Ref8 {[%clk 0:00:26.3]} 29. a5 {[%clk
0:01:32.3]} 29... bxa5 {[%clk 0:00:24.1]} 30. dxc5 {[%clk 0:01:32.9]} 30... f4
{[%clk 0:00:20.4]} 31. Rf1 {[%clk 0:01:25.3]} 31... f3 {[%clk 0:00:18.5]} 32.
Rae1 {[%clk 0:01:22.4]} 32... Qg6 {[%clk 0:00:17.6]} 33. g4 {[%clk 0:01:19.4]}
33... f2+ {[%clk 0:00:05.3]} 34. Rxf2 {[%clk 0:01:18.7]} 34... Rxf2 {[%clk
0:00:06.2]} 35. Kxf2 {[%clk 0:01:19.3]} 35... Rf8+ {[%clk 0:00:07.1]} 36. Kg1
{[%clk 0:01:19.2]} 36... Qc2 {[%clk 0:00:07.3]} 37. Rf1 {[%clk 0:01:16.7]} 37...
Rxf1+ {[%clk 0:00:06.4]} 38. Qxf1 {[%clk 0:01:16.3]} 38... Bh4 {[%clk
0:00:06.3]} 39. c6 {[%clk 0:01:12]} 39... Kh7 {[%clk 0:00:03.5]} 40. c7 {[%clk
0:01:11.1]} 40... Bg5 {[%clk 0:00:04.1]} 41. c8=Q {[%clk 0:01:09.2]} 41... Bxe3+
{[%clk 0:00:04.5]} 42. Kh1 {[%clk 0:01:09.7]} 42... Bf4 {[%clk 0:00:02.4]} 43.
Qxf4 {[%clk 0:01:05.8]} 43... Qd1+ {[%clk 0:00:02.7]} 44. Kg2 {[%clk 0:01:05.5]}
44... Qe2+ {[%clk 0:00:03.1]} 45. Kh3 {[%clk 0:01:03.3]} 45... Qd3+ {[%clk
0:00:03.5]} 46. Kg2 {[%clk 0:01:02]} 46... Qe2+ {[%clk 0:00:03.6]} 47. Kg1
{[%clk 0:01:02.2]} 47... Qe1+ {[%clk 0:00:03.7]} 48. Qf1 {[%clk 0:01:02.7]}
48... Qe3+ {[%clk 0:00:04]} 49. Qf2 {[%clk 0:01:03.2]} 49... Qc1+ {[%clk
0:00:04.6]} 50. Kg2 {[%clk 0:01:03.7]} 50... Qg5 {[%clk 0:00:05]} 51. Qh8+
{[%clk 0:01:02.3]} 51... Kxh8 {[%clk 0:00:05]} 52. Nf7+ {[%clk 0:01:02.9]} 52...
Kh7 {[%clk 0:00:05]} 53. Nxg5+ {[%clk 0:01:03.8]} 53... hxg5 {[%clk 0:00:05.8]}
54. Qc2+ {[%clk 0:01:03.9]} 1-0

[Event "*** SCC Grand Prix: Titled Tuesday Blitz"]
[Site "Chess.com"]
[Date "2020.07.21"]
[Round "3"]
[White "chargemax23"]
[Black "PawnEatingZombie"]
[Result "1-0"]
[WhiteElo "2616"]
[BlackElo "2238"]
[TimeControl "180+1"]
[EndTime "10:27:50 PDT"]
[Termination "chargemax23 won on time"]

1. e4 {[%clk 0:03:00.9]} 1... c6 {[%clk 0:02:59.6]} 2. Nc3 {[%clk 0:03:00.1]}
2... d5 {[%clk 0:02:58.4]} 3. Nf3 {[%clk 0:03:00.4]} 3... dxe4 {[%clk
0:02:58.8]} 4. Nxe4 {[%clk 0:03:00]} 4... Nf6 {[%clk 0:02:59.3]} 5. Nc3 {[%clk
0:02:59.7]} 5... Bf5 {[%clk 0:02:52.3]} 6. d4 {[%clk 0:02:59.1]} 6... e6 {[%clk
0:02:51.5]} 7. a3 {[%clk 0:02:57.9]} 7... Bd6 {[%clk 0:02:44.7]} 8. h3 {[%clk
0:02:56]} 8... Nbd7 {[%clk 0:02:41.9]} 9. Bc4 {[%clk 0:02:54.8]} 9... Qc7 {[%clk
0:02:29.7]} 10. Qe2 {[%clk 0:02:48.4]} 10... O-O {[%clk 0:02:23.8]} 11. O-O
{[%clk 0:02:45.8]} 11... h6 {[%clk 0:02:18.7]} 12. Re1 {[%clk 0:02:43.8]} 12...
Rfe8 {[%clk 0:02:15.5]} 13. Ne5 {[%clk 0:02:43.2]} 13... a6 {[%clk 0:02:06.6]}
14. b4 {[%clk 0:02:38.8]} 14... Nb6 {[%clk 0:01:59]} 15. Bb3 {[%clk 0:02:36.6]}
15... Nbd5 {[%clk 0:01:56.9]} 16. Bb2 {[%clk 0:02:27.3]} 16... b6 {[%clk
0:01:51]} 17. Qf3 {[%clk 0:02:16.9]} 17... Bh7 {[%clk 0:01:16.1]} 18. Rad1
{[%clk 0:02:08.1]} 18... Rad8 {[%clk 0:01:14.4]} 19. Nb1 {[%clk 0:01:46]} 19...
b5 {[%clk 0:00:56.3]} 20. Nd2 {[%clk 0:01:44.5]} 20... a5 {[%clk 0:00:49.5]} 21.
bxa5 {[%clk 0:01:40.2]} 21... Ra8 {[%clk 0:00:49.1]} 22. c4 {[%clk 0:01:38.5]}
22... bxc4 {[%clk 0:00:47.6]} 23. Ndxc4 {[%clk 0:01:38.2]} 23... Reb8 {[%clk
0:00:45.9]} 24. Bc1 {[%clk 0:01:26.8]} 24... Bf8 {[%clk 0:00:36.1]} 25. Ba4
{[%clk 0:01:20.9]} 25... c5 {[%clk 0:00:32.4]} 26. Nc6 {[%clk 0:01:09.4]} 26...
Rb1 {[%clk 0:00:22.9]} 27. Bb2 {[%clk 0:00:49.2]} 27... Rxd1 {[%clk 0:00:22.5]}
28. Rxd1 {[%clk 0:00:48.8]} 28... cxd4 {[%clk 0:00:22.7]} 29. Bxd4 {[%clk
0:00:48.1]} 29... Ne4 {[%clk 0:00:15.1]} 30. Qb3 {[%clk 0:00:37.7]} 30... Nc5
{[%clk 0:00:12.8]} 31. Bxc5 {[%clk 0:00:36.8]} 31... Bxc5 {[%clk 0:00:12]} 32.
Qb5 {[%clk 0:00:33.6]} 32... Ba7 {[%clk 0:00:09]} 33. N4e5 {[%clk 0:00:30.1]}
33... f6 {[%clk 0:00:04.6]} 34. Nf3 {[%clk 0:00:26.9]} 34... Qg3 {[%clk
0:00:03.6]} 35. Qb2 {[%clk 0:00:24]} 35... Qd6 {[%clk 0:00:01.4]} 36. Nxa7
{[%clk 0:00:23.1]} 36... Rxa7 {[%clk 0:00:01.6]} 37. Qb5 {[%clk 0:00:22.5]} 1-0

[Event "*** SCC Grand Prix: Titled Tuesday Blitz"]
[Site "Chess.com"]
[Date "2020.07.21"]
[Round "3"]
[White "Aemulus20"]
[Black "Grischuk"]
[Result "0-1"]
[WhiteElo "2632"]
[BlackElo "3039"]
[TimeControl "180+1"]
[EndTime "10:27:52 PDT"]
[Termination "Grischuk won by resignation"]

1. e4 {[%clk 0:03:00.9]} 1... c5 {[%clk 0:02:58]} 2. Nc3 {[%clk 0:03:01]} 2...
d6 {[%clk 0:02:57.6]} 3. f4 {[%clk 0:03:01.6]} 3... g6 {[%clk 0:02:57.4]} 4. Nf3
{[%clk 0:03:02.2]} 4... Bg7 {[%clk 0:02:57.9]} 5. Bc4 {[%clk 0:03:02.7]} 5...
Nc6 {[%clk 0:02:58.4]} 6. f5 {[%clk 0:03:03.1]} 6... gxf5 {[%clk 0:02:51.7]} 7.
O-O {[%clk 0:03:03.1]} 7... Nf6 {[%clk 0:02:41.2]} 8. d3 {[%clk 0:03:01.4]} 8...
fxe4 {[%clk 0:02:39.4]} 9. dxe4 {[%clk 0:03:02.3]} 9... Bg4 {[%clk 0:02:35.1]}
10. h3 {[%clk 0:03:02.2]} 10... Bxf3 {[%clk 0:02:33.5]} 11. Qxf3 {[%clk
0:03:03.1]} 11... Ne5 {[%clk 0:02:27.7]} 12. Bb5+ {[%clk 0:03:01.4]} 12... Kf8
{[%clk 0:02:26.6]} 13. Qg3 {[%clk 0:02:55.2]} 13... c4 {[%clk 0:02:18.2]} 14. b3
{[%clk 0:02:08.6]} 14... Rc8 {[%clk 0:02:05.9]} 15. Bf4 {[%clk 0:01:56.9]} 15...
Nh5 {[%clk 0:02:00.4]} 16. Qe1 {[%clk 0:01:47.8]} 16... Nxf4 {[%clk 0:01:58]}
17. Rxf4 {[%clk 0:01:48.7]} 17... cxb3 {[%clk 0:01:31.8]} 18. cxb3 {[%clk
0:01:38.5]} 18... Qb6+ {[%clk 0:01:00.5]} 19. Kh1 {[%clk 0:01:37.4]} 19... Rxc3
{[%clk 0:00:51.3]} 20. Qxc3 {[%clk 0:01:36.6]} 20... Qxb5 {[%clk 0:00:50.4]} 21.
Qc8+ {[%clk 0:01:33.9]} 21... Qe8 {[%clk 0:00:50.6]} 22. Rc1 {[%clk 0:01:21.5]}
22... Bh6 {[%clk 0:00:34.5]} 23. Qxb7 {[%clk 0:01:16.2]} 23... Kg7 {[%clk
0:00:28]} 24. g3 {[%clk 0:00:54.7]} 24... Rg8 {[%clk 0:00:20.7]} 25. Rg1 {[%clk
0:00:51.6]} 25... Kh8 {[%clk 0:00:17.8]} 26. Rf2 {[%clk 0:00:40.8]} 26... Be3
{[%clk 0:00:17.8]} 27. Rgf1 {[%clk 0:00:28.2]} 27... Bxf2 {[%clk 0:00:17.8]} 28.
Rxf2 {[%clk 0:00:29.1]} 28... Rxg3 {[%clk 0:00:17.5]} 29. Rc2 {[%clk 0:00:29.7]}
29... Rg8 {[%clk 0:00:12.1]} 30. Rc7 {[%clk 0:00:21.5]} 30... Qf8 {[%clk
0:00:11.4]} 31. Qb5 {[%clk 0:00:12.2]} 31... Qh6 {[%clk 0:00:10.8]} 32. Qf1
{[%clk 0:00:12.6]} 32... Qe3 {[%clk 0:00:08.5]} 33. Rxe7 {[%clk 0:00:09.7]}
33... Qf3+ {[%clk 0:00:07.6]} 34. Qxf3 {[%clk 0:00:09.4]} 34... Nxf3 {[%clk
0:00:08.5]} 0-1

[Event "*** SCC Grand Prix: Titled Tuesday Blitz"]
[Site "Chess.com"]
[Date "2020.07.21"]
[Round "3"]
[White "Roza_Idrisova"]
[Black "capatl"]
[Result "0-1"]
[WhiteElo "2247"]
[BlackElo "2408"]
[TimeControl "180+1"]
[EndTime "10:27:52 PDT"]
[Termination "capatl won on time"]

1. d4 {[%clk 0:03:00.9]} 1... d5 {[%clk 0:02:59.9]} 2. Nf3 {[%clk 0:03:01.3]}
2... e6 {[%clk 0:03:00.4]} 3. Bg5 {[%clk 0:03:00.1]} 3... Nf6 {[%clk 0:03:01.3]}
4. Nbd2 {[%clk 0:02:58.9]} 4... Nbd7 {[%clk 0:03:01.9]} 5. e3 {[%clk 0:02:59.1]}
5... Be7 {[%clk 0:03:00]} 6. Bd3 {[%clk 0:02:58.7]} 6... O-O {[%clk 0:03:00]} 7.
O-O {[%clk 0:02:58.1]} 7... c5 {[%clk 0:02:59.3]} 8. c3 {[%clk 0:02:57.9]} 8...
Qc7 {[%clk 0:02:55.3]} 9. h3 {[%clk 0:02:54.5]} 9... Re8 {[%clk 0:02:54.7]} 10.
Re1 {[%clk 0:02:53.9]} 10... b6 {[%clk 0:02:54.1]} 11. Rc1 {[%clk 0:02:53]}
11... Bb7 {[%clk 0:02:53.7]} 12. Bb1 {[%clk 0:02:52.5]} 12... Rac8 {[%clk
0:02:51.9]} 13. Bf4 {[%clk 0:02:47.2]} 13... Bd6 {[%clk 0:02:51.5]} 14. Bxd6
{[%clk 0:02:42.7]} 14... Qxd6 {[%clk 0:02:52.4]} 15. dxc5 {[%clk 0:02:40.3]}
15... Nxc5 {[%clk 0:02:44]} 16. c4 {[%clk 0:02:37.9]} 16... Red8 {[%clk
0:02:37.8]} 17. cxd5 {[%clk 0:02:30.4]} 17... Qxd5 {[%clk 0:02:35.8]} 18. Nb3
{[%clk 0:02:13.8]} 18... Na4 {[%clk 0:02:15.8]} 19. Qe2 {[%clk 0:02:05.6]} 19...
Qh5 {[%clk 0:02:03.1]} 20. Nbd4 {[%clk 0:01:59]} 20... e5 {[%clk 0:01:48]} 21.
Nf5 {[%clk 0:01:53.6]} 21... Rxc1 {[%clk 0:01:43.2]} 22. Rxc1 {[%clk 0:01:50.4]}
22... Bxf3 {[%clk 0:01:38.5]} 23. gxf3 {[%clk 0:01:41.9]} 23... e4 {[%clk
0:01:24.2]} 24. b3 {[%clk 0:01:26]} 24... exf3 {[%clk 0:01:18.4]} 25. Qf1 {[%clk
0:01:20.8]} 25... Nc5 {[%clk 0:01:12.5]} 26. Kh2 {[%clk 0:01:15.2]} 26... Nce4
{[%clk 0:00:56.6]} 27. Bxe4 {[%clk 0:01:05.2]} 27... Nxe4 {[%clk 0:00:57.5]} 28.
Nd4 {[%clk 0:00:54.4]} 28... Qe5+ {[%clk 0:00:50.2]} 29. Kh1 {[%clk 0:00:53.5]}
29... Qf6 {[%clk 0:00:41.5]} 30. Qg1 {[%clk 0:00:36.6]} 30... h6 {[%clk
0:00:39.4]} 31. Rc2 {[%clk 0:00:29.8]} 31... Rxd4 {[%clk 0:00:18.4]} 32. exd4
{[%clk 0:00:28.3]} 32... Qf5 {[%clk 0:00:18.8]} 33. Qg4 {[%clk 0:00:08.9]} 33...
Ng3+ {[%clk 0:00:17.8]} 34. fxg3 {[%clk 0:00:05.3]} 34... Qxc2 {[%clk
0:00:17.4]} 35. Qxf3 {[%clk 0:00:05]} 35... Qxa2 {[%clk 0:00:17.2]} 0-1

[Event "*** SCC Grand Prix: Titled Tuesday Blitz"]
[Site "Chess.com"]
[Date "2020.07.21"]
[Round "3"]
[White "chessdjw"]
[Black "markberk"]
[Result "0-1"]
[WhiteElo "2667"]
[BlackElo "2347"]
[TimeControl "180+1"]
[EndTime "10:27:54 PDT"]
[Termination "markberk won on time"]

1. c4 {[%clk 0:03:00.9]} 1... e5 {[%clk 0:02:58.9]} 2. g3 {[%clk 0:02:58.3]}
2... Nf6 {[%clk 0:02:57.1]} 3. Bg2 {[%clk 0:02:57.8]} 3... c6 {[%clk 0:02:57]}
4. Nf3 {[%clk 0:02:57.1]} 4... e4 {[%clk 0:02:55.1]} 5. Nd4 {[%clk 0:02:56.2]}
5... d5 {[%clk 0:02:54.9]} 6. cxd5 {[%clk 0:02:52]} 6... Qxd5 {[%clk 0:02:54.7]}
7. Nc2 {[%clk 0:02:51.2]} 7... Bc5 {[%clk 0:02:38.4]} 8. Nc3 {[%clk 0:02:50]}
8... Qh5 {[%clk 0:02:31]} 9. Nxe4 {[%clk 0:02:44.3]} 9... Nxe4 {[%clk
0:02:30.9]} 10. Bxe4 {[%clk 0:02:45.2]} 10... Bh3 {[%clk 0:02:29.8]} 11. d4
{[%clk 0:02:44.5]} 11... Be7 {[%clk 0:02:27.7]} 12. Qd3 {[%clk 0:02:40.9]} 12...
O-O {[%clk 0:02:24]} 13. Bf4 {[%clk 0:02:39.8]} 13... Na6 {[%clk 0:02:22.6]} 14.
O-O-O {[%clk 0:02:37.8]} 14... Qa5 {[%clk 0:02:15.2]} 15. Bxh7+ {[%clk
0:02:09.7]} 15... Kh8 {[%clk 0:02:13.9]} 16. Be4 {[%clk 0:02:07]} 16... Qxa2
{[%clk 0:02:09.1]} 17. Qf3 {[%clk 0:02:00.8]} 17... f5 {[%clk 0:01:52.9]} 18.
Qh5+ {[%clk 0:02:00.1]} 18... Kg8 {[%clk 0:01:51.8]} 19. Bf3 {[%clk 0:01:44.5]}
19... Nb4 {[%clk 0:01:39.4]} 20. Qxh3 {[%clk 0:01:36]} 20... Qc4 {[%clk
0:00:59.1]} 21. Rd2 {[%clk 0:01:35.1]} 21... a5 {[%clk 0:00:48.7]} 22. g4 {[%clk
0:01:27.3]} 22... a4 {[%clk 0:00:47.6]} 23. g5 {[%clk 0:01:13.2]} 23... a3
{[%clk 0:00:42.5]} 24. b3 {[%clk 0:00:33.5]} 24... Qxb3 {[%clk 0:00:30.8]} 25.
Nxb4 {[%clk 0:00:24.8]} 25... Bxb4 {[%clk 0:00:16.4]} 26. Bd5+ {[%clk
0:00:20.3]} 26... Qxd5 {[%clk 0:00:14.6]} 27. g6 {[%clk 0:00:19.4]} 27... Bxd2+
{[%clk 0:00:11]} 28. Kd1 {[%clk 0:00:09]} 28... Rfd8 {[%clk 0:00:06.8]} 29. Qh7+
{[%clk 0:00:08]} 29... Kf8 {[%clk 0:00:06.4]} 30. Qh8+ {[%clk 0:00:06.4]} 30...
Qg8 {[%clk 0:00:05.6]} 0-1